bitfinex/quotes_BTCUSD_20240730
["timestamp","ask_amount","ask_price","bid_price","bid_amount"]
[1722300461708,0.20952312,66515.0,66514.0,0.014913]
[1722300461709,0.6150519,66515.0,66514.0,0.014913]
[1722300461900,1.33923715,66515.0,66514.0,0.014913]
[1722300462097,1.5797912,66515.0,66514.0,0.00652222]
[1722300462494,1.578237,66515.0,66514.0,0.00652222]
[1722300463268,1.60181936,66515.0,66514.0,0.00652222]
[1722300463495,0.1881,66503.0,66493.0,0.121225]
[1722300463696,0.29990078,66503.0,66502.0,0.15154604]
[1722300463894,0.31019338,66503.0,66502.0,0.15154604]
[1722300464720,0.12209338,66503.0,66502.0,0.15154604]
[1722300465108,0.24238838,66503.0,66502.0,0.15154604]
[1722300465303,0.31771835,66503.0,66502.0,0.15154604]
[1722300466117,0.32071835,66503.0,66502.0,0.15154604]
[1722300466463,0.12909338,66503.0,66502.0,0.15154604]
[1722300466674,0.73056838,66503.0,66502.0,0.15154604]
[1722300466895,1.225533,66503.0,66502.0,0.000913]
[1722300467028,1.02943347,66503.0,66502.0,0.000913]
[1722300467296,0.85706181,66503.0,66502.0,0.000913]
[1722300467446,0.38211085,66503.0,66502.0,0.15154604]
[1722300467653,0.35987457,66503.0,66502.0,0.15154604]
[1722300467874,0.35287457,66503.0,66502.0,0.15154604]
[1722300468878,0.47516957,66503.0,66502.0,0.15154604]
[1722300469297,0.43068838,66503.0,66502.0,0.15154604]
[1722300469509,0.76680094,66503.0,66502.0,0.15154604]
[1722300470317,0.43068838,66503.0,66502.0,0.15154604]
[1722300470479,0.45427456,66503.0,66502.0,0.15154604]
[1722300470880,0.33397956,66503.0,66502.0,0.15154604]
[1722300471081,0.14767956,66503.0,66502.0,0.15154604]
[1722300471487,0.24438838,66503.0,66502.0,0.15154604]
[1722300472320,0.12609338,66503.0,66502.0,0.15154604]
[1722300472741,0.24638838,66503.0,66502.0,0.15154604]
[1722300473387,0.24238838,66503.0,66502.0,0.15154604]
[1722300473857,0.12409338,66503.0,66502.0,0.15154604]
[1722300474605,0.24438838,66503.0,66502.0,0.15154604]
[1722300474811,0.17787749,66503.0,66502.0,0.15154604]
[1722300475027,0.14767895,66503.0,66502.0,0.15154604]
[1722300476448,0.33877895,66503.0,66502.0,0.15154604]
[1722300476649,0.69966395,66503.0,66502.0,0.15154604]
[1722300477812,0.69966395,66503.0,66502.0,0.15254604]
[1722300478144,0.67607838,66503.0,66502.0,0.15254604]
[1722300478360,0.67607838,66503.0,66502.0,0.15154604]
[1722300479882,0.12409338,66503.0,66502.0,0.15154604]
[1722300480495,0.12209338,66503.0,66502.0,0.15154604]
[1722300480896,0.12209338,66503.0,66502.0,0.15254604]
[1722300481184,0.24238838,66503.0,66502.0,0.15254604]
[1722300481393,0.14567901,66503.0,66502.0,0.15254604]
[1722300481666,0.14667901,66503.0,66502.0,0.15254604]
[1722300481964,0.12309338,66503.0,66502.0,0.15254604]
[1722300483369,0.0112926,66503.0,66502.0,0.27284304]
[1722300483685,0.001,66503.0,66502.0,0.27284304]
[1722300483903,0.001,66503.0,66502.0,0.15254604]
[1722300484508,0.107666,66503.0,66502.0,0.15254604]
[1722300484873,0.26598589,66503.0,66502.0,0.15254604]
[1722300485206,0.14569089,66503.0,66502.0,0.15254604]
[1722300485551,0.16927571,66503.0,66502.0,0.15254604]
[1722300485691,0.16927571,66503.0,66502.0,0.001913]
[1722300485692,0.53016071,66503.0,66502.0,0.001913]
[1722300486895,0.72106071,66503.0,66502.0,0.001913]
[1722300487562,1.22632407,66503.0,66502.0,0.000913]
[1722300487702,1.22732407,66503.0,66502.0,0.000913]
[1722300487900,1.22733588,66503.0,66502.0,0.000913]
[1722300488106,1.93271588,66503.0,66502.0,0.000913]
[1722300488322,1.93271588,66503.0,66471.0,0.000913]
[1722300488323,0.792457,66494.0,66477.0,0.0801]
[1722300488686,0.792457,66494.0,66476.0,0.1063]
[1722300488687,0.601657,66483.0,66482.0,0.02986543]
[1722300488890,0.58261558,66483.0,66482.0,0.18049847]
[1722300489259,0.46766,66483.0,66482.0,0.02986543]
[1722300490300,0.226997,66483.0,66482.0,0.02986543]
[1722300490491,0.708323,66483.0,66482.0,0.02986543]
[1722300490711,0.46766,66483.0,66482.0,0.02986543]
[1722300491519,0.106666,66483.0,66482.0,0.18049847]
[1722300491730,0.226997,66483.0,66482.0,0.18049847]
[1722300492154,0.299354,66483.0,66482.0,0.18149847]
[1722300492520,0.540017,66483.0,66482.0,0.18149847]
[1722300492737,0.54616469,66483.0,66482.0,0.18049847]
[1722300493089,0.30750169,66483.0,66482.0,0.18049847]
[1722300493556,0.30550169,66483.0,66482.0,0.18049847]
[1722300493772,0.30750169,66483.0,66482.0,0.18049847]
[1722300494061,0.30750169,66483.0,66482.0,0.15063304]
[1722300495196,0.30550169,66483.0,66482.0,0.15063304]
[1722300495486,0.30650169,66483.0,66482.0,0.15063304]
[1722300495839,0.30550169,66483.0,66482.0,0.15063304]
[1722300496233,0.18617069,66483.0,66482.0,0.15063304]
[1722300496446,0.1312582,66483.0,66482.0,0.44896604]
[1722300496673,0.1302582,66483.0,66482.0,0.93029804]
[1722300496878,0.0235922,66483.0,66482.0,0.93029804]
[1722300497073,0.0245922,66483.0,66482.0,0.93029804]
[1722300497480,0.001,66483.0,66482.0,0.93029804]
[1722300497904,0.001,66483.0,66482.0,0.95329804]
[1722300498265,0.0083607,66493.0,66486.0,0.240651]
[1722300498416,0.0083607,66493.0,66487.0,0.15063304]
[1722300498417,0.07534716,66489.0,66487.0,0.15063304]
[1722300498616,0.11136974,66488.0,66487.0,0.15063304]
[1722300499264,0.11136974,66488.0,66487.0,0.59110504]
[1722300499441,0.11136974,66488.0,66487.0,0.93025304]
[1722300499642,0.001,66493.0,66488.0,0.240642]
[1722300499842,0.001,66493.0,66492.0,0.120315]
[1722300500068,0.001,66493.0,66492.0,0.83170804]
[1722300500069,0.10715987,66493.0,66492.0,0.83170804]
[1722300500307,0.001,66493.0,66492.0,0.93020804]
[1722300501848,0.001,66493.0,66492.0,1.17083804]
[1722300502049,0.001,66493.0,66492.0,1.19383804]
[1722300502334,0.04442703,66509.0,66501.0,0.202398]
[1722300502335,0.04442703,66507.0,66501.0,0.202398]
[1722300502635,0.06664054,66509.0,66502.0,0.15063304]
[1722300502636,0.10926734,66506.0,66502.0,0.15063304]
[1722300502847,0.10926734,66505.0,66502.0,0.15063304]
[1722300503268,0.10926734,66505.0,66504.0,0.240587]
[1722300503467,0.10926734,66505.0,66504.0,0.75210004]
[1722300503697,0.10926734,66505.0,66504.0,0.83420004]
[1722300503900,0.02358472,66506.0,66505.0,0.601457]
[1722300504183,0.02358472,66506.0,66505.0,0.75209004]
[1722300504374,0.02358472,66506.0,66505.0,0.51150704]
[1722300504872,0.02358472,66506.0,66505.0,0.15063304]
[1722300505076,0.11357099,66506.0,66505.0,0.15063304]
[1722300505277,0.1235998,66506.0,66505.0,0.15263304]
[1722300505602,0.13940447,66506.0,66505.0,0.15263304]
[1722300505943,0.1235998,66506.0,66505.0,0.15263304]
[1722300507095,0.1235998,66506.0,66505.0,0.15063304]
[1722300507299,0.1235998,66506.0,66505.0,0.15163304]
[1722300507453,0.2438888,66506.0,66505.0,0.15163304]
[1722300507655,0.120296,66503.0,66501.0,0.02986543]
[1722300507855,0.04454151,66505.0,66502.0,0.15063304]
[1722300508057,0.11020147,66504.0,66502.0,0.15063304]
[1722300508468,0.11020147,66503.0,66502.0,0.15063304]
[1722300509079,0.11020147,66506.0,66502.0,0.15063304]
[1722300509246,0.004,66504.0,66502.0,0.15063304]
[1722300509466,0.004,66504.0,66496.0,0.0873]
[1722300509467,0.1863,66502.0,66488.0,0.086]
[1722300509672,0.1863,66502.0,66493.0,0.15063304]
[1722300509673,0.360936,66494.0,66493.0,0.15063304]
[1722300509871,0.47113747,66494.0,66493.0,0.15063304]
[1722300510092,0.51569621,66494.0,66493.0,0.15063304]
[1722300510929,0.53797558,66494.0,66493.0,0.15063304]
[1722300511095,0.61935887,66494.0,66493.0,0.15063304]
[1722300511768,0.62035887,66494.0,66493.0,0.16463304]
[1722300511974,0.64294678,66494.0,66493.0,0.15763304]
[1722300512176,0.61935887,66494.0,66493.0,0.15063304]
[1722300512357,0.6193599,66494.0,66493.0,0.15563304]
[1722300512499,0.29735361,66494.0,66493.0,0.15063304]
[1722300512704,0.23051447,66494.0,66493.0,0.15063304]
[1722300512907,0.47113747,66494.0,66493.0,0.15063304]
[1722300514448,0.11020147,66494.0,66493.0,0.15063304]
[1722300514665,0.23051247,66494.0,66493.0,0.15063304]
[1722300514815,0.47113547,66494.0,66493.0,0.15063304]
[1722300515035,0.80966918,66494.0,66493.0,0.15063304]
[1722300515339,0.80966918,66494.0,66485.0,0.086]
[1722300515340,0.360939,66493.0,66485.0,0.086]
[1722300515545,0.360939,66493.0,66473.0,0.240696]
[1722300515546,0.98638533,66493.0,66488.0,0.02986543]
[1722300515867,1.24929105,66493.0,66488.0,0.02986543]
[1722300516081,1.39808682,66493.0,66488.0,0.02986543]
[1722300516209,1.30690478,66493.0,66488.0,0.02986543]
[1722300516418,1.15746082,66493.0,66488.0,0.02986543]
[1722300516844,1.56079931,66493.0,66488.0,0.02986543]
[1722300518008,1.32017331,66493.0,66488.0,0.02986543]
[1722300518437,1.19517549,66493.0,66488.0,0.02986543]
[1722300518643,1.56080266,66493.0,66488.0,0.02986543]
[1722300518840,1.32017666,66493.0,66488.0,0.02986543]
[1722300519049,1.32017666,66493.0,66492.0,0.001913]
[1722300519249,1.73686406,66493.0,66492.0,0.001]
[1722300519450,0.120346,66475.0,66473.0,0.0828]
[1722300519679,0.120346,66475.0,66474.0,0.15063304]
[1722300519850,0.120351,66472.0,66471.0,0.000913]
[1722300520216,0.120351,66472.0,66471.0,0.15154604]
[1722300520217,0.21983525,66472.0,66471.0,0.15154604]
[1722300520344,0.22963718,66472.0,66471.0,0.15154604]
[1722300520570,0.22963718,66472.0,66471.0,0.000913]
[1722300520571,0.7865949,66472.0,66471.0,0.000913]
[1722300520775,0.5458929,66472.0,66471.0,0.000913]
[1722300522103,0.3051909,66472.0,66471.0,0.005913]
[1722300522306,0.47033918,66472.0,66471.0,0.009913]
[1722300522687,0.22963718,66472.0,66471.0,0.009913]
[1722300522902,0.10928618,66472.0,66471.0,0.009913]
[1722300523149,0.22963718,66472.0,66471.0,0.009913]
[1722300523322,0.47033918,66472.0,66471.0,0.009913]
[1722300523755,0.54589233,66472.0,66471.0,0.009913]
[1722300524076,0.18483933,66472.0,66471.0,0.16054604]
[1722300524221,0.18483933,66472.0,66471.0,0.19041147]
[1722300524222,0.13288082,66472.0,66471.0,0.19041147]
[1722300524636,0.13288082,66472.0,66471.0,0.37871147]
[1722300524843,0.03339657,66472.0,66471.0,0.37871147]
[1722300525238,0.03339657,66472.0,66471.0,0.34884604]
[1722300525446,0.11179508,66472.0,66471.0,0.34884604]
[1722300525644,0.00980193,66472.0,66471.0,0.34884604]
[1722300525859,0.00851438,66474.0,66471.0,0.34884604]
[1722300526204,0.12034,66479.0,66472.0,0.15063304]
[1722300526409,0.00963097,66473.0,66472.0,0.15063304]
[1722300526636,0.120341,66478.0,66472.0,0.15063304]
[1722300526832,0.10356668,66477.0,66475.0,0.120344]
[1722300527035,0.00849857,66479.0,66476.0,0.27097504]
[1722300527324,0.10697095,66478.0,66477.0,0.1876]
[1722300527521,0.12852125,66484.0,66477.0,0.33823304]
[1722300527730,0.10697095,66484.0,66478.0,0.15063304]
[1722300527987,0.120332,66483.0,66478.0,0.18049847]
[1722300528189,0.10697095,66482.0,66478.0,0.18049847]
[1722300528338,0.10697095,66481.0,66478.0,0.18049847]
[1722300528529,0.10697095,66480.0,66478.0,0.18049847]
[1722300528843,0.07534716,66482.0,66478.0,0.18049847]
[1722300528844,0.10697095,66479.0,66478.0,0.18049847]
[1722300529187,0.10697095,66479.0,66478.0,0.18149847]
[1722300529952,0.22730895,66479.0,66478.0,0.18149847]
[1722300530916,0.10697095,66479.0,66478.0,0.18149847]
[1722300531122,0.16960498,66479.0,66478.0,0.18149847]
[1722300531879,0.16960498,66479.0,66478.0,0.15163304]
[1722300532083,0.16960498,66479.0,66478.0,0.001]
[1722300532282,0.28994298,66479.0,66478.0,0.001]
[1722300533125,0.53061998,66479.0,66478.0,0.001]
[1722300534062,0.13056427,66479.0,66478.0,0.001]
[1722300534271,0.10697095,66479.0,66478.0,0.15163304]
[1722300534406,0.1166052,66479.0,66478.0,0.23383304]
[1722300535959,0.1166052,66479.0,66478.0,0.45767304]
[1722300536360,0.10697095,66479.0,66478.0,0.33733304]
[1722300537608,0.14019723,66479.0,66478.0,0.33733304]
[1722300537804,0.13056298,66479.0,66478.0,0.33733304]
[1722300537965,0.14019723,66479.0,66478.0,0.33733304]
[1722300538160,0.14019723,66479.0,66478.0,0.33633304]
[1722300538987,0.1166052,66479.0,66478.0,0.33633304]
[1722300539237,0.1166052,66479.0,66478.0,0.33724604]
[1722300540148,0.10697095,66479.0,66478.0,0.33724604]
[1722300540701,0.11663214,66479.0,66478.0,0.33724604]
[1722300540886,0.11863214,66479.0,66478.0,0.33724604]
[1722300541274,0.10897095,66479.0,66478.0,0.33724604]
[1722300541675,0.10897095,66479.0,66478.0,0.69826704]
[1722300542117,0.10897095,66479.0,66478.0,0.93894804]
[1722300542574,0.10897095,66479.0,66478.0,1.20262904]
[1722300542575,0.002,66479.0,66478.0,1.20262904]
[1722300544325,0.002,66479.0,66478.0,1.20562904]
[1722300544726,0.002,66479.0,66478.0,1.20262904]
[1722300545258,0.002,66479.0,66478.0,1.21662904]
[1722300545690,0.00942173,66492.0,66490.0,0.120318]
[1722300545900,0.10774527,66491.0,66490.0,0.15018343]
[1722300546127,0.11740646,66491.0,66490.0,0.30081647]
[1722300546294,0.11722545,66491.0,66490.0,0.30081647]
[1722300546455,0.11722545,66491.0,66490.0,0.54145347]
[1722300546652,0.11722545,66491.0,66490.0,0.78209047]
[1722300546854,0.10756426,66491.0,66490.0,0.78209047]
[1722300547284,0.10756426,66491.0,66490.0,0.78609047]
[1722300547443,0.10756426,66491.0,66490.0,0.86819047]
[1722300547845,0.10756426,66491.0,66490.0,0.86419047]
[1722300548099,0.10756426,66491.0,66490.0,0.87019047]
[1722300548696,0.10756426,66491.0,66490.0,0.86419047]
[1722300549258,0.10756426,66491.0,66490.0,1.10482747]
[1722300549505,0.00083,66492.0,66491.0,0.842219]
[1722300549709,0.00083,66492.0,66491.0,0.99285204]
[1722300550590,0.00083,66492.0,66491.0,0.75221804]
[1722300550775,0.00183,66492.0,66491.0,0.76321804]
[1722300550982,0.00183,66492.0,66491.0,0.77221804]
[1722300559455,0.00183,66492.0,66491.0,0.17063304]
[1722300559654,0.58857467,66492.0,66491.0,0.02]
[1722300559874,1.65823848,66492.0,66491.0,0.02]
[1722300560072,0.1916,66486.0,66478.0,0.000913]
[1722300560280,0.07534716,66479.0,66478.0,0.000913]
[1722300560478,0.08509891,66479.0,66478.0,0.000913]
[1722300561508,0.08509891,66479.0,66478.0,0.013913]
[1722300561678,0.12665778,66479.0,66478.0,0.013913]
[1722300562103,0.12665778,66479.0,66478.0,0.025913]
[1722300562642,0.01075175,66479.0,66478.0,0.025913]
[1722300564005,0.01075175,66479.0,66478.0,0.013913]
[1722300564409,0.01275175,66479.0,66478.0,0.013913]
[1722300564606,0.01275175,66479.0,66478.0,0.000913]
[1722300564934,0.37076675,66479.0,66478.0,0.000913]
[1722300565135,0.57708365,66479.0,66478.0,0.000913]
[1722300565454,0.51336123,66479.0,66478.0,0.000913]
[1722300565671,0.80269402,66479.0,66478.0,0.000913]
[1722300565837,1.06221946,66479.0,66478.0,0.000913]
[1722300566051,1.30489646,66479.0,66478.0,0.000913]
[1722300566253,1.39839326,66479.0,66478.0,0.000913]
[1722300566454,1.28720917,66479.0,66478.0,0.000913]
[1722300566697,1.29021767,66479.0,66478.0,0.000913]
[1722300566839,1.40140295,66479.0,66478.0,0.000913]
[1722300567040,1.40140295,66479.0,66471.0,0.100913]
[1722300567041,0.611755,66472.0,66471.0,0.100913]
[1722300567240,1.21454637,66472.0,66471.0,0.100913]
[1722300567442,1.69088997,66472.0,66471.0,0.100913]
[1722300567820,2.03160716,66472.0,66471.0,0.100913]
[1722300568026,1.77366901,66472.0,66471.0,0.100913]
[1722300568222,1.64027212,66472.0,66471.0,0.100913]
[1722300568688,1.64027212,66472.0,66471.0,0.104913]
[1722300569389,1.50374946,66472.0,66471.0,0.104913]
[1722300569936,1.52374946,66472.0,66471.0,0.100913]
[1722300570755,1.52374645,66472.0,66471.0,0.100913]
[1722300572316,1.52374645,66472.0,66471.0,0.000913]
[1722300572515,1.67437949,66472.0,66471.0,0.000913]
[1722300572679,1.82507381,66472.0,66471.0,0.000913]
[1722300573315,1.81507381,66472.0,66471.0,0.000913]
[1722300573656,1.82507381,66472.0,66471.0,0.000913]
[1722300573860,1.69002405,66472.0,66471.0,0.000913]
[1722300574192,1.82331854,66472.0,66471.0,0.000913]
[1722300575010,0.1847,66463.0,66448.0,0.009317]
[1722300575242,0.63122616,66449.0,66448.0,0.009317]
[1722300575377,0.91016586,66449.0,66448.0,0.009317]
[1722300575576,1.28312248,66449.0,66448.0,0.009317]
[1722300575780,1.25875153,66449.0,66448.0,0.009317]
[1722300575978,0.90286553,66449.0,66448.0,0.009317]
[1722300576177,0.56247953,66449.0,66448.0,0.009317]
[1722300576379,0.32169353,66449.0,66448.0,0.009317]
[1722300576635,0.20130053,66449.0,66448.0,0.009317]
[1722300576981,0.10779967,66449.0,66448.0,0.009317]
[1722300577182,0.00779967,66449.0,66448.0,0.009317]
[1722300577383,0.240779,66451.0,66448.0,0.009317]
[1722300577586,0.64455653,66449.0,66448.0,0.009317]
[1722300577937,0.81547635,66449.0,66448.0,0.009317]
[1722300578114,0.58242461,66449.0,66448.0,0.009317]
[1722300578320,0.57136304,66449.0,66448.0,0.009317]
[1722300578540,0.82214904,66449.0,66448.0,0.009317]
[1722300578698,0.74455653,66449.0,66448.0,0.009317]
[1722300579046,0.50377053,66449.0,66448.0,0.109317]
[1722300579217,0.74455653,66449.0,66448.0,0.109317]
[1722300579418,0.50377053,66449.0,66448.0,0.109317]
[1722300579582,0.50377053,66449.0,66448.0,0.110317]
[1722300579788,0.74455653,66449.0,66448.0,0.110317]
[1722300579985,0.75455653,66449.0,66448.0,0.109317]
[1722300580429,1.41892494,66449.0,66448.0,0.110317]
[1722300580639,1.41892494,66449.0,66447.0,0.009317]
[1722300580640,0.611972,66448.0,66447.0,0.00759687]
[1722300580845,1.24652048,66448.0,66447.0,0.00759687]
[1722300581061,1.26408203,66448.0,66447.0,0.00759687]
[1722300581558,1.26408203,66448.0,66427.0,0.0788]
[1722300581559,0.612065,66438.0,66427.0,0.0788]
[1722300581759,0.98151437,66438.0,66427.0,0.0788]
[1722300581989,1.33954652,66438.0,66426.0,0.009317]
[1722300582208,1.35710807,66438.0,66426.0,0.009317]
[1722300582378,1.36710807,66438.0,66426.0,0.009317]
[1722300582601,1.34710807,66438.0,66426.0,0.009317]
[1722300582725,1.16490807,66438.0,66426.0,0.009317]
[1722300582927,1.19851833,66438.0,66426.0,0.009317]
[1722300583146,1.06131218,66438.0,66426.0,0.009317]
[1722300583358,0.81748618,66438.0,66426.0,0.009317]
[1722300583550,0.81748618,66438.0,66437.0,0.091017]
[1722300583551,0.04617181,66438.0,66437.0,0.091017]
[1722300583752,0.03861026,66438.0,66437.0,0.091017]
[1722300584264,0.04617181,66438.0,66437.0,0.091017]
[1722300584695,0.04617181,66438.0,66437.0,0.48247904]
[1722300584876,0.04617181,66438.0,66437.0,0.94062204]
[1722300584877,0.02256155,66438.0,66437.0,0.94062204]
[1722300585072,0.015,66438.0,66437.0,1.20445104]
[1722300585338,0.0115542,66465.0,66439.0,0.1809]
[1722300585339,0.0015542,66465.0,66439.0,0.1809]
[1722300585535,0.04459954,66464.0,66463.0,0.1787]
[1722300585856,0.44444115,66466.0,66463.0,0.1787]
[1722300585857,0.0015542,66465.0,66463.0,0.1787]
[1722300586037,0.12036,66467.0,66463.0,0.1787]
[1722300586464,0.0015542,66473.0,66463.0,0.1787]
[1722300586641,0.0015542,66473.0,66464.0,0.15063304]
[1722300586798,0.0015542,66473.0,66465.0,0.120363]
[1722300586799,0.00769014,66473.0,66465.0,0.120363]
[1722300586984,0.00769014,66473.0,66466.0,0.15063304]
[1722300587183,0.00151309,66472.0,66466.0,0.15063304]
[1722300587701,0.00151309,66472.0,66467.0,0.120359]
[1722300587901,0.00151309,66472.0,66467.0,0.27099204]
[1722300587902,0.02359711,66471.0,66467.0,0.27099204]
[1722300588102,0.02359711,66471.0,66468.0,0.120357]
[1722300588315,0.0015542,66470.0,66469.0,0.120355]
[1722300588915,0.02359711,66471.0,66467.0,0.15063304]
[1722300588916,0.02359711,66471.0,66467.0,0.27099204]
[1722300589289,0.0015542,66470.0,66469.0,0.120356]
[1722300589586,0.07534716,66477.0,66469.0,0.120356]
[1722300589587,0.0015542,66476.0,66469.0,0.120356]
[1722300589781,0.0015542,66474.0,66467.0,0.27099204]
[1722300590407,0.0015542,66474.0,66467.0,0.15063304]
[1722300590750,0.07534716,66470.0,66464.0,0.02986543]
[1722300590955,0.24921031,66478.0,66464.0,0.02986543]
[1722300590956,0.00138421,66469.0,66465.0,0.15063304]
[1722300591168,0.00852631,66478.0,66468.0,0.240717]
[1722300591169,0.00144023,66477.0,66468.0,0.240717]
[1722300591368,0.00144023,66477.0,66476.0,0.361032]
[1722300591565,0.44444115,66488.0,66477.0,0.240681]
[1722300591767,0.0015542,66491.0,66481.0,0.120334]
[1722300591768,0.10184195,66487.0,66481.0,0.120334]
[1722300591972,0.1218712,66491.0,66482.0,0.15063304]
[1722300591973,0.10184195,66486.0,66482.0,0.15063304]
[1722300592294,0.02359279,66486.0,66482.0,0.15063304]
[1722300592490,0.02359279,66486.0,66484.0,0.120329]
[1722300592699,0.02359279,66486.0,66485.0,0.27096004]
[1722300593054,0.02359279,66486.0,66485.0,0.51161504]
[1722300593267,0.011,66487.0,66486.0,0.120326]
[1722300593469,0.011,66487.0,66486.0,0.45875904]
[1722300594721,0.011,66487.0,66486.0,0.69941104]
[1722300594874,0.011,66487.0,66486.0,0.94006304]
[1722300595231,0.120285,66509.0,66491.0,0.789385]
[1722300595424,0.240567,66510.0,66491.0,0.94001804]
[1722300595666,0.12850211,66506.0,66491.0,0.96988347]
[1722300595867,0.240567,66510.0,66491.0,0.96988347]
[1722300596067,0.120287,66508.0,66491.0,0.96988347]
[1722300596246,0.02441611,66492.0,66491.0,0.96988347]
[1722300596646,0.02541611,66492.0,66491.0,0.98088347]
[1722300597336,0.02541611,66492.0,66491.0,1.22151747]
[1722300597526,0.02541611,66492.0,66491.0,1.24451747]
[1722300597772,0.00183,66492.0,66491.0,1.24451747]
[1722300598347,0.00083,66492.0,66491.0,1.23351747]
[1722300598650,0.00083,66492.0,66491.0,1.24451747]
[1722300598651,0.00183,66492.0,66491.0,1.24451747]
[1722300599804,0.00183,66492.0,66491.0,1.00388347]
[1722300600460,0.00183,66492.0,66491.0,0.74024947]
[1722300600586,0.00083,66492.0,66491.0,0.69938404]
[1722300600798,0.00083,66492.0,66491.0,0.94001804]
[1722300600975,0.02441541,66492.0,66491.0,0.69938404]
[1722300601183,0.00083,66492.0,66491.0,0.69938404]
[1722300601387,0.00083,66492.0,66491.0,0.33843304]
[1722300601597,0.00083,66492.0,66491.0,0.45875004]
[1722300601791,0.00083,66492.0,66491.0,0.33843304]
[1722300602019,0.00183,66492.0,66491.0,0.16163304]
[1722300602224,0.00907314,66492.0,66491.0,0.15063304]
[1722300602667,0.01007314,66492.0,66491.0,0.16163304]
[1722300602821,0.00183,66492.0,66491.0,0.16163304]
[1722300603198,0.00183,66492.0,66491.0,0.011]
[1722300603439,0.01007314,66492.0,66491.0,0.011]
[1722300603896,0.01007314,66492.0,66491.0,0.40226704]
[1722300604111,0.01007314,66492.0,66491.0,0.28195004]
[1722300604268,0.00183,66492.0,66491.0,0.16163304]
[1722300604472,0.02358696,66492.0,66491.0,0.16163304]
[1722300604897,0.02358696,66492.0,66491.0,0.15063304]
[1722300605093,0.0318301,66492.0,66491.0,0.15063304]
[1722300605505,0.0318301,66492.0,66486.0,0.0834]
[1722300605711,0.00824314,66492.0,66491.0,0.27095004]
[1722300605910,0.00824314,66492.0,66491.0,0.85481804]
[1722300606084,0.00824314,66492.0,66491.0,1.19935204]
[1722300606291,0.4753,66507.0,66495.0,0.1835]
[1722300606491,0.0083294,66511.0,66496.0,0.17363304]
[1722300606740,0.00697504,66506.0,66503.0,0.120295]
[1722300607065,0.120282,66510.0,66504.0,0.15063304]
[1722300607216,0.00697618,66505.0,66504.0,0.15063304]
[1722300607380,0.120282,66510.0,66504.0,0.15063304]
[1722300607581,0.00697618,66505.0,66504.0,0.15063304]
[1722300607825,0.07534716,66511.0,66504.0,0.15063304]
[1722300607826,0.120288,66507.0,66504.0,0.15063304]
[1722300608001,0.00697618,66505.0,66504.0,0.15063304]
[1722300608201,0.19562816,66511.0,66503.0,0.02986543]
[1722300608202,0.12029,66506.0,66503.0,0.02986543]
[1722300608465,0.12726818,66505.0,66503.0,0.02986543]
[1722300608844,0.120293,66504.0,66503.0,0.02986543]
[1722300609285,0.12726918,66504.0,66503.0,0.02986543]
[1722300609576,0.00697618,66504.0,66503.0,0.02986543]
[1722300610094,0.12731907,66504.0,66503.0,0.02986543]
[1722300610655,0.12731907,66504.0,66503.0,0.18049847]
[1722300610656,0.01102607,66504.0,66503.0,0.18049847]
[1722300610850,0.01102607,66504.0,66503.0,0.30079347]
[1722300610851,0.00702607,66504.0,66503.0,0.30079347]
[1722300611050,0.120278,66513.0,66504.0,0.120293]
[1722300611254,0.120278,66513.0,66505.0,0.15063304]
[1722300611674,0.10944598,66514.0,66506.0,0.1916]
[1722300611819,0.10944598,66514.0,66507.0,0.15063304]
[1722300612177,0.19562616,66512.0,66507.0,0.15063304]
[1722300612377,0.05545642,66511.0,66507.0,0.15063304]
[1722300612595,0.07534716,66512.0,66507.0,0.15063304]
[1722300613023,0.02358416,66511.0,66507.0,0.15063304]
[1722300613352,0.02358416,66511.0,66507.0,0.15163304]
[1722300613753,0.14386516,66511.0,66507.0,0.15163304]
[1722300613939,0.02358416,66511.0,66507.0,0.15163304]
[1722300614149,0.02358416,66511.0,66507.0,0.15063304]
[1722300614590,0.10902665,66510.0,66507.0,0.15063304]
[1722300615418,0.00134944,66509.0,66507.0,0.15063304]
[1722300615565,0.10902665,66508.0,66507.0,0.15063304]
[1722300615771,0.02858416,66511.0,66507.0,0.15063304]
[1722300615772,0.10902665,66510.0,66507.0,0.15063304]
[1722300615968,0.10902665,66509.0,66507.0,0.15063304]
[1722300616173,0.10902665,66508.0,66507.0,0.15063304]
[1722300616892,0.10902665,66508.0,66507.0,0.15263304]
[1722300618040,0.00944598,66514.0,66508.0,0.120285]
[1722300618217,0.23631856,66513.0,66509.0,0.15063304]
[1722300618419,0.00944598,66514.0,66509.0,0.15063304]
[1722300618420,0.11136772,66512.0,66509.0,0.15063304]
[1722300618670,0.11136772,66511.0,66509.0,0.15063304]
[1722300618870,0.11136772,66510.0,66509.0,0.15063304]
[1722300619396,0.00944598,66514.0,66511.0,0.0798]
[1722300619597,0.23658567,66513.0,66512.0,0.15063304]
[1722300619804,0.24058567,66513.0,66512.0,0.15063304]
[1722300620501,0.26416818,66513.0,66512.0,0.15063304]
[1722300620704,0.26016818,66513.0,66512.0,0.15063304]
[1722300621273,0.26016818,66513.0,66512.0,0.27091204]
[1722300621811,0.26016818,66513.0,66512.0,0.15063304]
[1722300622376,0.26416818,66513.0,66512.0,0.15063304]
[1722300622583,0.26416818,66513.0,66512.0,0.27091204]
[1722300623001,0.26716818,66513.0,66512.0,0.15063304]
[1722300623257,0.26316818,66513.0,66512.0,0.15063304]
[1722300623644,0.26016818,66513.0,66512.0,0.15263304]
[1722300623887,0.26016818,66513.0,66512.0,0.75402804]
[1722300624057,0.1352193,66513.0,66512.0,0.51447004]
[1722300625313,0.11163679,66513.0,66512.0,0.51447004]
[1722300625616,0.11163679,66513.0,66512.0,0.27391204]
[1722300626074,0.11163679,66513.0,66512.0,0.15363304]
[1722300626244,0.11163679,66513.0,66512.0,0.27391204]
[1722300626450,0.11877451,66513.0,66512.0,0.27391204]
[1722300626650,0.11877451,66513.0,66512.0,0.51447004]
[1722300626853,0.11163679,66513.0,66512.0,0.51447004]
[1722300627274,0.11163679,66513.0,66512.0,0.75502804]
[1722300627890,0.11163679,66513.0,66512.0,0.85502804]
[1722300628099,0.11163679,66513.0,66512.0,1.19748604]
[1722300628655,0.00083,66514.0,66513.0,1.020839]
[1722300628861,0.00083,66514.0,66513.0,1.22433747]
[1722300629257,0.0244087,66514.0,66513.0,1.22433747]
[1722300629622,0.00083,66514.0,66513.0,1.22433747]
[1722300630357,0.00183,66514.0,66513.0,1.23333747]
[1722300630776,0.00183,66514.0,66513.0,0.98378347]
[1722300631176,0.00183,66514.0,66513.0,0.35939847]
[1722300631416,0.00183,66514.0,66513.0,0.47967547]
[1722300631654,0.00183,66514.0,66513.0,0.72022947]
[1722300632411,0.00183,66514.0,66513.0,0.73322947]